{"text_format":"1","workbook":"xlsx","n_sheets":8,"sheets":["Erläuterungen","Gesamtaufwendungen","Sachaufwendungen","Freistellungserklärung","Personalaufwendungen Jahr 2021","Personalaufwendungen Jahr 2022","Personalaufwendungen Jahr 2023","Grenzen"],"not_rendered":{"charts":0,"images":0,"macros":1,"external_links":1,"defined_names":22,"comments":0,"pivot_tables":0},"unopened":[],"bounds":{"document_bytes":16777216,"sheet_cells":100000,"rows_first":2000,"rows_last":500,"rows_between":2000,"halvings":0,"cell_chars":16384,"cell_head_chars":4096},"cells_cut":0,"cells_raw":0,"read":"whole","date_system":"1900"}

{"sheet":"Erläuterungen","index":0,"n_rows":74,"n_cols":2,"rows_kept":74,"cut":false,"hidden":false,"merged":[[72,0,72,3],[73,0,73,8],[3,0,3,1],[3,2,3,4],[5,0,5,1],[5,2,5,4],[7,0,7,1],[57,0,57,8],[59,0,60,8],[62,0,63,8],[65,0,69,8],[71,0,71,3],[49,0,49,6],[51,0,51,1],[52,0,52,7],[54,0,54,3],[55,0,55,3],[41,1,41,8],[44,0,44,3],[45,0,45,3],[47,0,47,7],[48,0,48,7],[31,1,31,8],[33,1,33,8],[35,1,35,8],[37,1,37,8],[39,1,39,8],[23,0,23,3],[25,0,25,8],[27,1,27,8],[29,1,29,8],[0,0,0,8],[9,0,9,8],[10,0,10,8],[13,0,13,3],[15,1,15,8],[19,1,19,8],[17,1,17,8]]}
["Bitte drucken Sie alle Tabellenblätter aus!"]
[]
[]
["Antragsteller"]
[]
["Welcome Center"]
[]
["Anlage zum Antrag vom "]
[]
["Erläuterungen"]
["Allgemein / Sachaufwendungen / Personalaufwendungen"]
[]
[]
["Allgemeine Hinweise"]
[]
["\u009f","Dieser Vordruck ist als Anlage zum Antrag zu verwenden."]
[]
["\u009f","Das Tabellenblatt \"Übersicht\" wird automatisch durch das Ausfüllen der folgenden Tabellenblättern befüllt. Die Beträge aus der Übersicht sind in das Antragsformular zu übertragen."]
[]
["\u009f","Alle Tabellenblätter sind auszudrucken und im Original dem Antrag beizulegen. Die Unterschriften auf den Blättern Gesamtaufwendungen und Freistellungserklärung sind zwingend erforderlich. "]
[]
[]
[]
["Nicht zuwendungsfähige Aufwendungen"]
[]
["Folgende Aufwendungen sind generell nicht zuwendungsfähig unbeschadet weiterer Ausschlüsse im Aufruf:"]
[]
["\u009f","Umsatzsteuerbeträge, soweit Vorsteuerabzugsberechtigung für das Vorhaben nach § 15 UStG besteht oder erworben wird"]
[]
["\u009f","Beiträge zu nicht gesetzlich vorgeschriebenen Versicherungen"]
[]
["\u009f","Zuführungen an Rücklagen"]
[]
["\u009f","nicht-kassenwirksame Aufwendungen und Kosten (Bildung von Rückstellungen, kalkulatorische Zinsen, kalkulatorische Mietkosten etc.)"]
[]
["\u009f","Schuldzinsen"]
[]
["\u009f","Rechtsberatungskosten"]
[]
["\u009f","Sicherheitsleistungen"]
[]
["\u009f","Investitionen"]
[]
[]
["Erläuterungen Sachkosten"]
[]
["Kategorien"]
["a. Veranstaltungskosten\n- Referentenhonorare \n- Veranstaltungstechnik\n- Raummieten für Veranstaltungen außerhalb des Welcome Centers, sofern Räume von Dritten angemietet werden müssen. \n- Bescheidene Bewirtungen bei zielgruppenspezifischen Veranstaltungen. Interne Bewirtungen für Mitarbeiter/-innen des Zuwendungsempfängers sind nicht zuwendungsfähig.\n"]
["b. Öffentlichkeitsarbeit \nAusgaben für vorhabenspezifische Informationsmaßnahmen im Rahmen des Projekts: \n- Erstellung einschließlich Konzeption, Design und Pflege eines projektspezifischen Internetauftrittes.\n- Erstellung einschließlich Gestaltung und Druck von Printerzeugnissen wie Broschüren, Flyer, Plakate, Einladungen, Roll-ups, Unterlagen für Veranstaltungen bzw. Dokumentationen von Veranstaltungen und sonstige Printmedien.\n- Erstellung audiovisueller Medien wie z.B. Videoclips.\n"]
["c. Raummieten für den Betrieb des Welcome Center\nSofern die Anmietung der Räume von Dritten unumgänglich ist sind Raummieten in angemessener Höhe zuwendungsfähig. Kalkulatorische Mietkosten sind nicht zuwendungsfähig.\n"]
[]
["Vergaberecht"]
["Bei Vergabe von Aufträgen sind die Nr. 3.1 und 3.2 ANBest-P bzw. ANBest-K zu beachten und die Vergabeentscheidung ggf. entsprechend zu dokumentieren."]
[]
["Erläuterungen Personalaufwendungen"]
[]
["Definition"]
["Personalaufwendungen sind Aufwendungen, die für eigenes Personal anfallen. Eigenes Personal bedeutet, dass es beim Antragsteller / Zuwendungsempfänger angestellt ist und von diesem nachweislich bezahlt wird."]
["Zuwendungsfähige Ausgaben"]
["Personalaufwendungen bestehen aus den Entgelten bzw. Bezügen, den Arbeitgeberanteilen an den Sozialversicherungsbeiträgen und werden brutto angesetzt. \nMaximal sind 4 VZÄ förderfähig (Leitung: max. E 13; Beratung max. E 11; Assistenz max. E 8). Die Grenzen finden Sie im letzten Blatt dieses Dokuments.\n"]
[]
["Besserstellungsverbot*"]
["Zuwendungsempfänger, deren Gesamtausgaben überwiegend aus Zuwendungen der öffentlichen Hand bestritten werden, unterliegen dem Besserstellungsverbot. Das Besserstellungsverbot ist eingehalten, wenn die Beschäftigten tatsächlich (in der Summe) nicht finanziell bessergestellt sind als vergleichbare Landesbedienstete (Ziff. 1.3 ANBest-P). Hinweis: Die zuwendungsfähigen Personalaufwendungen unterliegen einer Einzelfallprüfung und können sich aufgrund des Besserstellungsverbots vermindern. Die entsprechenden Unterlagen werden ggf. nachgefordert."]
[]
["Gemeinkostenpauschale"]
["Die Gemeinkostenpauschale umfasst indirekte Aufwendungen, die im direkten Zusammenhang mit dem im Projekt beschäftigten Personal stehen wie insbesondere Strom, Wasser, Abfallgebühren, Büroreinigung, IT-Wartung, Telefon/Internet (laufende Kosten), Büroverbrauchsmaterial, Steuerbüro-/Lohnabrechnungskosten, Kontogebühren, sowie ergänzend alle Reise- und Fortbildungskosten. Eine Einzelabrechnung dieser Aufwendungen als Sachaufwendungen ist nicht möglich. Sie wird automatisch berechnet.\n"]
[]
[]
[]
[]
[]
["Erläuterung Finanzierungsübersicht"]
[]
["Unter Eigenmitteln werden ausschließlich Mittel verstanden, die vom Antragsteller selbst eingebracht werden. Finanzierungsbeiträge von Konsortialpartnern oder anderen Finanzierungspartnern (wie z.B. Unterstützerkreise) sind daher abhängig von der Rechtsform des jeweiligen Partners als Private Mittel Dritter oder Öffentliche Mittel Dritter auszuweisen."]

{"sheet":"Gesamtaufwendungen","index":1,"n_rows":23,"n_cols":5,"rows_kept":23,"cut":false,"hidden":false,"merged":[[6,0,6,2],[7,0,7,2],[8,0,8,2],[9,0,9,2],[10,0,10,2],[22,3,22,4],[22,0,22,1],[21,0,21,1],[21,3,21,4],[11,0,11,2],[12,0,12,2],[14,0,15,4]]}
[{"$f":"Erläuterungen!$A$4","v":"Antragsteller"},{"$f":"Erläuterungen!$C$4","v":0}]
[{"$f":"Erläuterungen!$A$6","v":"Welcome Center"},{"$f":"Erläuterungen!$C$6","v":0}]
[]
["Aufstellung Gesamtaufwendungen"]
[]
[]
[1,null,null,2,3]
["Art der Aufwendungen",null,null,"Gesamt","Zuwendungsfähig"]
[null,null,null,"Berechnung","Berechnung"]
["Sachaufwendungen",null,null,{"$f":"IF(Sachaufwendungen!C39=\"\",0,Sachaufwendungen!C39)","v":0},{"$f":"IF(Sachaufwendungen!D39=\"\",0,Sachaufwendungen!D39)","v":0}]
["Personalaufwendungen",null,null,{"$f":"'Personalaufwendungen Jahr 2021'!H30+'Personalaufwendungen Jahr 2022'!H28+'Personalaufwendungen Jahr 2023'!H28","v":0},{"$f":"'Personalaufwendungen Jahr 2021'!J30+'Personalaufwendungen Jahr 2022'!J28+'Personalaufwendungen Jahr 2023'!J28","v":0}]
["Gemeinkostenpauschale",null,null,{"$f":"'Personalaufwendungen Jahr 2021'!J32+'Personalaufwendungen Jahr 2022'!J30+'Personalaufwendungen Jahr 2023'!J30","v":0},{"$f":"'Personalaufwendungen Jahr 2021'!J32+'Personalaufwendungen Jahr 2022'!J30+'Personalaufwendungen Jahr 2023'!J30","v":0}]
["Gesamtaufwendungen",null,null,{"$f":"IF(SUM(D10:D12)=0,0,SUM(D10:D12))","v":0},{"$f":"IF(SUM(E10:E12)=0,0,SUM(E10:E12))","v":0}]
[]
["Ich/wir bestätigen, dass soweit die Möglichkeit zum Vorsteuerabzug nach § 15 Umsatzsteuergesetz besteht, nur die Nettoaufwendungen angegeben wurden."]
[]
[]
[]
[]
[]
[]
[]
["Ort, Datum",null,null,"Unterschrift Antragsteller "]

{"sheet":"Sachaufwendungen","index":2,"n_rows":39,"n_cols":4,"rows_kept":39,"cut":false,"hidden":false,"merged":[]}
[{"$f":"Erläuterungen!$A$4","v":"Antragsteller"},{"$f":"Erläuterungen!$C$4","v":0}]
[{"$f":"Erläuterungen!$A$6","v":"Welcome Center"},{"$f":"Erläuterungen!$C$6","v":0}]
[]
["Sachaufwendungen"]
[]
[]
[null,1,2,3]
["Kategorie","Beschreibung","Gesamt","Zuwendungsfähig"]
["Auswahl über Drop-Down-Menü","Eingabe","Eingabe","Eingabe"]
[]
[]
[]
[]
[]
[]
[]
[]
[]
[]
[]
[]
[]
[]
[]
[]
[]
[]
[]
[]
[]
[]
[]
[]
[]
[]
[]
[]
[]
[null,"Summe",{"$f":"IF(SUM(C10:C38)=0,\"\",SUM(C10:C38))","v":""},{"$f":"IF(SUM(D10:D38)=0,\"\",SUM(D10:D38))","v":""}]

{"sheet":"Freistellungserklärung","index":3,"n_rows":23,"n_cols":10,"rows_kept":23,"cut":false,"hidden":false,"merged":[[0,1,0,2],[1,1,1,2],[12,9,12,16],[3,1,3,7],[2,5,2,6],[2,1,2,4],[4,5,4,7],[8,1,8,6],[10,1,10,6]]}
[null,{"$f":"Erläuterungen!A4","v":"Antragsteller"},null,{"$f":"Erläuterungen!C4","v":0}]
[null,{"$f":"Erläuterungen!A6","v":"Welcome Center"},null,{"$f":"Erläuterungen!C6","v":0}]
[null,"Freistellungserklärungen für internes Projektpersonal für ",null,null,null,"Förderphase 2"]
[null,"Ich/Wir bestätige/n, dass für die Durchführung der oben genannten Fördermaßnahme folgende Mitarbeiter/innen (internes Personal) für Förderphase 2 für den angegebenen Stundenumfang freigestellt werden:"]
[null,null,null,null,"Unterschrift:"]
[]
[null,"\nlfd. Nr.","\nName der/des Beschäftigten\n(Name, Vorname) ","\nBeschäftigungs-zeitraum ","\nBeschäftigungsumfang \ninsgesamt beim Träger\nin Prozent","davon Beschäftigungsumfang im beantragten Projekt \n in Prozent","\nVZÄ im Projekt","\nTarifvertrag (gängige Abkürzung) und tarifliche Eingruppierung"]
[null,null,"Eingabe",null,"Eingabe","Berechnung","Eingabe","Eingabe"]
[null,"Beispiel 1 (B 1): Der/die Mitarbeiter/in wird während eines vollen Kalenderjahres (Zeitraum 12 Monate) zu 75% beim Träger beschäftigt sein. Im Projekt wird er/sie mit 0,5 VZÄ beschäftigt sein. Von seiner/ihrer Von seiner/ihrer Gesamtbeschäftigung werden 67 % auf Tätigkeiten im beantragten Projekt entfallen; in den restlichen 33 % wird der/die Mitarbeiter/in beim Träger für andere nicht projektbezogene Tätigkeiten eingesetzt werden."]
[null,"B 1","Name, Vorname","FP 2",0.75,{"$f":"G10/E10","v":0.66666666666666663},0.5,"TVöD E 12"]
[null,"Beispiel 2 (B 2): Der/die Mitarbeiter/in wird lediglich zu 50% beim Träger beschäftigt sein. Im Projekt wird er/sie mit 0,5 VZÄ beschäftigt sein. Er/sie arbeitete ausschließlich, also zu 100% für das beantragte Projekt."]
[null,"B 2","Name, Vorname","FP 2",0.5,{"$f":"G12/E12","v":1},0.5,"TVöD E 12"]
[null,null,null,null,null,null,null,null,null,"Hilfstabelle in Zellen L30 bis L39 : Achtung diese Zellen (L30:L39)  nicht löschen, sonst stimmt die Formel in Zelle B 41 nicht!!"]
[null,"1.",null,null,null,{"$f":"G14/E14","v":{"$error":"#DIV/0!"}},null,null,null,{"$f":"IF(OR(D14>100%,G14>100%),\"Sie haben einen Beschäftigungsumfang von mehr als 100% eingegeben. Bitte überprüfen Sie Ihre Angaben.\",\" \")","v":" "}]
[null,"2.",null,null,null,{"$f":"G15/E15","v":{"$error":"#DIV/0!"}},null,null,null," "]
[null,"3.",null,null,null,{"$error":"#DIV/0!"},null,null,null," "]
[null,"4.",null,null,null,{"$error":"#DIV/0!"},null,null,null," "]
[null,"5.",null,null,null,{"$error":"#DIV/0!"},null,null,null," "]
[null,"6.",null,null,null,{"$error":"#DIV/0!"},null,null,null," "]
[null,"7.",null,null,null,{"$error":"#DIV/0!"},null,null,null," "]
[null,"8.",null,null,null,{"$error":"#DIV/0!"},null,null,null," "]
[null,"9.",null,null,null,{"$error":"#DIV/0!"},null,null,null," "]
[null,"10.",null,null,null,{"$error":"#DIV/0!"},null,null,null," "]

{"sheet":"Personalaufwendungen Jahr 2021","index":4,"n_rows":32,"n_cols":11,"rows_kept":32,"cut":false,"hidden":false,"merged":[]}
[{"$f":"Erläuterungen!$A$4","v":"Antragsteller"},null,{"$f":"Erläuterungen!$C$4","v":0}]
[{"$f":"Erläuterungen!$A$6","v":"Welcome Center"},null,{"$f":"Erläuterungen!$C$6","v":0}]
[]
[]
[]
["Personalaufwendungen"]
[]
[]
[null,"Jahr:   ",2021]
[]
[1,2,3,5,6,7,8,9,null,10,11]
["lfd. Nr.","Name, Vorname","Beschäftigungs-umfang insgesamt beim Träger\n(in %)","jährliche Personal-aufwendungen in und außerhalb des Projekts\n(inkl. AG-Anteilen an den Sozialversicherungsbeiträgen)","Funktion / Aufgabe im Projekt\n(Auswahl über Drop-Down-Menü)","Beschäftigungs-umfang im Projekt\n(in %)","Dauer im Projekt\n(in Monaten)","Personalauf-wendungen im Projekt \n(inkl. AG-Anteilen an den Sozialversicherungsbeiträgen)","Höchstgrenze gem. TV-L","zuwendungs-fähig*","nicht zuwendungs-fähig*"]
[null,null,null,null,"Leitung TV-L E 13 = 1\nBeratung TV-L E 11 = 2\nAssistenz TV-L E 8 = 3 "]
["Eingabe","Eingabe","Eingabe","Eingabe","Eingabe","Eingabe","Eingabe","Berechnung","Berechnung","Berechnung","Berechnung"]
[1,null,null,null,null,null,null,{"$f":"((D15/12)*G15)*F15","v":0},{"$f":"IF(E15=1,Grenzen!$B$3,IF(E15=2,Grenzen!$B$12,Grenzen!$B$21))/12*G15*F15*C15","v":0},{"$f":"IF(H15>I15,I15,H15)","v":0},{"$f":"IF(OR(H15=\"\",J15=\"\"),\"\",(H15-J15))","v":0}]
[2,null,null,null,null,null,null,{"$f":"((D16/12)*G16)*F16","v":0},{"$f":"IF(E16=1,Grenzen!$B$3,IF(E16=2,Grenzen!$B$12,Grenzen!$B$21))/12*G16*F16*C16","v":0},{"$f":"IF(H16>I16,I16,H16)","v":0},0]
[3,null,null,null,null,null,null,0,{"$f":"IF(E17=1,Grenzen!$B$3,IF(E17=2,Grenzen!$B$12,Grenzen!$B$21))/12*G17*F17*C17","v":0},0,0]
[4,null,null,null,null,null,null,0,{"$f":"IF(E18=1,Grenzen!$B$3,IF(E18=2,Grenzen!$B$12,Grenzen!$B$21))/12*G18*F18*C18","v":0},0,0]
[5,null,null,null,null,null,null,0,{"$f":"IF(E19=1,Grenzen!$B$3,IF(E19=2,Grenzen!$B$12,Grenzen!$B$21))/12*G19*F19*C19","v":0},0,0]
[6,null,null,null,null,null,null,0,{"$f":"IF(E20=1,Grenzen!$B$3,IF(E20=2,Grenzen!$B$12,Grenzen!$B$21))/12*G20*F20*C20","v":0},0,0]
[7,null,null,null,null,null,null,0,{"$f":"IF(E21=1,Grenzen!$B$3,IF(E21=2,Grenzen!$B$12,Grenzen!$B$21))/12*G21*F21*C21","v":0},0,0]
[8,null,null,null,null,null,null,0,{"$f":"IF(E22=1,Grenzen!$B$3,IF(E22=2,Grenzen!$B$12,Grenzen!$B$21))/12*G22*F22*C22","v":0},0,0]
[9,null,null,null,null,null,null,0,{"$f":"IF(E23=1,Grenzen!$B$3,IF(E23=2,Grenzen!$B$12,Grenzen!$B$21))/12*G23*F23*C23","v":0},0,0]
[10,null,null,null,null,null,null,0,{"$f":"IF(E24=1,Grenzen!$B$3,IF(E24=2,Grenzen!$B$12,Grenzen!$B$21))/12*G24*F24*C24","v":0},0,0]
[11,null,null,null,null,null,null,0,{"$f":"IF(E25=1,Grenzen!$B$3,IF(E25=2,Grenzen!$B$12,Grenzen!$B$21))/12*G25*F25*C25","v":0},0,0]
[12,null,null,null,null,null,null,0,{"$f":"IF(E26=1,Grenzen!$B$3,IF(E26=2,Grenzen!$B$12,Grenzen!$B$21))/12*G26*F26*C26","v":0},0,0]
[13,null,null,null,null,null,null,0,{"$f":"IF(E27=1,Grenzen!$B$3,IF(E27=2,Grenzen!$B$12,Grenzen!$B$21))/12*G27*F27*C27","v":0},0,0]
[14,null,null,null,null,null,null,0,{"$f":"IF(E28=1,Grenzen!$B$3,IF(E28=2,Grenzen!$B$12,Grenzen!$B$21))/12*G28*F28*C28","v":0},0,0]
[15,null,null,null,null,null,null,0,{"$f":"IF(E29=1,Grenzen!$B$3,IF(E29=2,Grenzen!$B$12,Grenzen!$B$21))/12*G29*F29*C29","v":0},0,0]
[null,null,null,null,null,null,"Summe",{"$f":"SUM(H15:H29)","v":0},null,{"$f":"SUM(J15:J29)","v":0},{"$f":"SUM(K15:K29)","v":0}]
[]
[null,null,null,null,null,null,"Gemeinkostenpauschale",null,null,{"$f":"ROUND(J30*10/100,2)","v":0}]

{"sheet":"Personalaufwendungen Jahr 2022","index":5,"n_rows":30,"n_cols":11,"rows_kept":30,"cut":false,"hidden":false,"merged":[]}
[{"$f":"Erläuterungen!$A$4","v":"Antragsteller"},null,{"$f":"Erläuterungen!$C$4","v":0}]
[{"$f":"Erläuterungen!$A$6","v":"Welcome Center"},null,{"$f":"Erläuterungen!$C$6","v":0}]
[]
["Personalaufwendungen"]
[]
[]
[null,"Jahr:   ",2022]
[]
[1,2,3,5,6,7,8,9,null,10,11]
["lfd. Nr.","Name, Vorname","Beschäftigungs-umfang insgesamt beim Träger\n(in %)","jährliche Personal-aufwendungen in und außerhalb des Projekts\n(inkl. AG-Anteilen an den Sozialversicherungsbeiträgen)","Funktion / Aufgabe im Projekt\n(Auswahl über Drop-Down-Menü)","Beschäftigungs-umfang im Projekt\n(in %)","Dauer im Projekt\n(in Monaten)","Personalauf-wendungen im Projekt \n(inkl. AG-Anteilen an den Sozialversicherungsbeiträgen)","Höchstgrenze gem. TV-L","zuwendungs-fähig*","nicht zuwendungs-fähig*"]
[null,null,null,null,"Leitung TV-L E 13 = 1\nBeratung TV-L E 11 = 2\nAssistenz TV-L E 8 = 3 "]
["Eingabe","Eingabe","Eingabe","Eingabe","Eingabe","Eingabe","Eingabe","Berechnung","Berechnung","Berechnung","Berechnung"]
[1,null,null,null,null,null,null,{"$f":"((D13/12)*G13)*F13","v":0},{"$f":"IF(E13=1,Grenzen!$B$4,IF(E13=2,Grenzen!$B$13,Grenzen!$B$22))/12*G13*F13*C13","v":0},{"$f":"IF(H13>I13,I13,H13)","v":0},{"$f":"IF(OR(H13=\"\",J13=\"\"),\"\",(H13-J13))","v":0}]
[2,null,null,null,null,null,null,{"$f":"((D14/12)*G14)*F14","v":0},{"$f":"IF(E14=1,Grenzen!$B$4,IF(E14=2,Grenzen!$B$13,Grenzen!$B$22))/12*G14*F14*C14","v":0},{"$f":"IF(H14>I14,I14,H14)","v":0},0]
[3,null,null,null,null,null,null,0,{"$f":"IF(E15=1,Grenzen!$B$4,IF(E15=2,Grenzen!$B$13,Grenzen!$B$22))/12*G15*F15*C15","v":0},0,0]
[4,null,null,null,null,null,null,0,{"$f":"IF(E16=1,Grenzen!$B$4,IF(E16=2,Grenzen!$B$13,Grenzen!$B$22))/12*G16*F16*C16","v":0},0,0]
[5,null,null,null,null,null,null,0,{"$f":"IF(E17=1,Grenzen!$B$4,IF(E17=2,Grenzen!$B$13,Grenzen!$B$22))/12*G17*F17*C17","v":0},0,0]
[6,null,null,null,null,null,null,0,{"$f":"IF(E18=1,Grenzen!$B$4,IF(E18=2,Grenzen!$B$13,Grenzen!$B$22))/12*G18*F18*C18","v":0},0,0]
[7,null,null,null,null,null,null,0,{"$f":"IF(E19=1,Grenzen!$B$4,IF(E19=2,Grenzen!$B$13,Grenzen!$B$22))/12*G19*F19*C19","v":0},0,0]
[8,null,null,null,null,null,null,0,{"$f":"IF(E20=1,Grenzen!$B$4,IF(E20=2,Grenzen!$B$13,Grenzen!$B$22))/12*G20*F20*C20","v":0},0,0]
[9,null,null,null,null,null,null,0,{"$f":"IF(E21=1,Grenzen!$B$4,IF(E21=2,Grenzen!$B$13,Grenzen!$B$22))/12*G21*F21*C21","v":0},0,0]
[10,null,null,null,null,null,null,0,{"$f":"IF(E22=1,Grenzen!$B$4,IF(E22=2,Grenzen!$B$13,Grenzen!$B$22))/12*G22*F22*C22","v":0},0,0]
[11,null,null,null,null,null,null,0,{"$f":"IF(E23=1,Grenzen!$B$4,IF(E23=2,Grenzen!$B$13,Grenzen!$B$22))/12*G23*F23*C23","v":0},0,0]
[12,null,null,null,null,null,null,0,{"$f":"IF(E24=1,Grenzen!$B$4,IF(E24=2,Grenzen!$B$13,Grenzen!$B$22))/12*G24*F24*C24","v":0},0,0]
[13,null,null,null,null,null,null,0,{"$f":"IF(E25=1,Grenzen!$B$4,IF(E25=2,Grenzen!$B$13,Grenzen!$B$22))/12*G25*F25*C25","v":0},0,0]
[14,null,null,null,null,null,null,0,{"$f":"IF(E26=1,Grenzen!$B$4,IF(E26=2,Grenzen!$B$13,Grenzen!$B$22))/12*G26*F26*C26","v":0},0,0]
[15,null,null,null,null,null,null,0,{"$f":"IF(E27=1,Grenzen!$B$4,IF(E27=2,Grenzen!$B$13,Grenzen!$B$22))/12*G27*F27*C27","v":0},0,0]
[null,null,null,null,null,null,"Summe",{"$f":"SUM(H13:H27)","v":0},null,{"$f":"SUM(J13:J27)","v":0},{"$f":"SUM(K13:K27)","v":0}]
[]
[null,null,null,null,null,null,"Gemeinkostenpauschale",null,null,{"$f":"ROUND(J28*10/100,2)","v":0}]

{"sheet":"Personalaufwendungen Jahr 2023","index":6,"n_rows":30,"n_cols":11,"rows_kept":30,"cut":false,"hidden":false,"merged":[]}
[{"$f":"Erläuterungen!$A$4","v":"Antragsteller"},null,{"$f":"Erläuterungen!$C$4","v":0}]
[{"$f":"Erläuterungen!$A$6","v":"Welcome Center"},null,{"$f":"Erläuterungen!$C$6","v":0}]
[]
["Personalaufwendungen"]
[]
[]
[null,"Jahr:   ",2023]
[]
[1,2,3,5,6,7,8,9,null,10,11]
["lfd. Nr.","Name, Vorname","Beschäftigungs-umfang insgesamt beim Träger\n(in %)","jährliche Personal-aufwendungen in und außerhalb des Projekts\n(inkl. AG-Anteilen an den Sozialversicherungsbeiträgen)","Funktion / Aufgabe im Projekt\n(Auswahl über Drop-Down-Menü)","Beschäftigungs-umfang im Projekt\n(in %)","Dauer im Projekt\n(in Monaten)","Personalauf-wendungen im Projekt \n(inkl. AG-Anteilen an den Sozialversicherungsbeiträgen)","Höchstgrenze gem. TV-L","zuwendungs-fähig*","nicht zuwendungs-fähig*"]
[null,null,null,null,"Leitung TV-L E 13 = 1\nBeratung TV-L E 11 = 2\nAssistenz TV-L E 8 = 3 "]
["Eingabe","Eingabe","Eingabe","Eingabe","Eingabe","Eingabe","Eingabe","Berechnung","Berechnung","Berechnung","Berechnung"]
[1,null,null,null,null,null,null,{"$f":"((D13/12)*G13)*F13","v":0},{"$f":"IF(E13=1,Grenzen!$B$5,IF(E13=2,Grenzen!$B$14,Grenzen!$B$23))/12*G13*F13*C13","v":0},{"$f":"IF(H13>I13,I13,H13)","v":0},{"$f":"IF(OR(H13=\"\",J13=\"\"),\"\",(H13-J13))","v":0}]
[2,null,null,null,null,null,null,{"$f":"((D14/12)*G14)*F14","v":0},{"$f":"IF(E14=1,Grenzen!$B$5,IF(E14=2,Grenzen!$B$14,Grenzen!$B$23))/12*G14*F14*C14","v":0},{"$f":"IF(H14>I14,I14,H14)","v":0},0]
[3,null,null,null,null,null,null,0,{"$f":"IF(E15=1,Grenzen!$B$5,IF(E15=2,Grenzen!$B$14,Grenzen!$B$23))/12*G15*F15*C15","v":0},0,0]
[4,null,null,null,null,null,null,0,{"$f":"IF(E16=1,Grenzen!$B$5,IF(E16=2,Grenzen!$B$14,Grenzen!$B$23))/12*G16*F16*C16","v":0},0,0]
[5,null,null,null,null,null,null,0,{"$f":"IF(E17=1,Grenzen!$B$5,IF(E17=2,Grenzen!$B$14,Grenzen!$B$23))/12*G17*F17*C17","v":0},0,0]
[6,null,null,null,null,null,null,0,{"$f":"IF(E18=1,Grenzen!$B$5,IF(E18=2,Grenzen!$B$14,Grenzen!$B$23))/12*G18*F18*C18","v":0},0,0]
[7,null,null,null,null,null,null,0,{"$f":"IF(E19=1,Grenzen!$B$5,IF(E19=2,Grenzen!$B$14,Grenzen!$B$23))/12*G19*F19*C19","v":0},0,0]
[8,null,null,null,null,null,null,0,{"$f":"IF(E20=1,Grenzen!$B$5,IF(E20=2,Grenzen!$B$14,Grenzen!$B$23))/12*G20*F20*C20","v":0},0,0]
[9,null,null,null,null,null,null,0,{"$f":"IF(E21=1,Grenzen!$B$5,IF(E21=2,Grenzen!$B$14,Grenzen!$B$23))/12*G21*F21*C21","v":0},0,0]
[10,null,null,null,null,null,null,0,{"$f":"IF(E22=1,Grenzen!$B$5,IF(E22=2,Grenzen!$B$14,Grenzen!$B$23))/12*G22*F22*C22","v":0},0,0]
[11,null,null,null,null,null,null,0,{"$f":"IF(E23=1,Grenzen!$B$5,IF(E23=2,Grenzen!$B$14,Grenzen!$B$23))/12*G23*F23*C23","v":0},0,0]
[12,null,null,null,null,null,null,0,{"$f":"IF(E24=1,Grenzen!$B$5,IF(E24=2,Grenzen!$B$14,Grenzen!$B$23))/12*G24*F24*C24","v":0},0,0]
[13,null,null,null,null,null,null,0,{"$f":"IF(E25=1,Grenzen!$B$5,IF(E25=2,Grenzen!$B$14,Grenzen!$B$23))/12*G25*F25*C25","v":0},0,0]
[14,null,null,null,null,null,null,0,{"$f":"IF(E26=1,Grenzen!$B$5,IF(E26=2,Grenzen!$B$14,Grenzen!$B$23))/12*G26*F26*C26","v":0},0,0]
[15,null,null,null,null,null,null,0,{"$f":"IF(E27=1,Grenzen!$B$5,IF(E27=2,Grenzen!$B$14,Grenzen!$B$23))/12*G27*F27*C27","v":0},0,0]
[null,null,null,null,null,null,"Summe",{"$f":"SUM(H13:H27)","v":0},null,{"$f":"SUM(J13:J27)","v":0},{"$f":"SUM(K13:K27)","v":0}]
[]
[null,null,null,null,null,null,"Gemeinkostenpauschale",null,null,{"$f":"ROUND(J28*10/100,2)","v":0}]

{"sheet":"Grenzen","index":7,"n_rows":25,"n_cols":3,"rows_kept":25,"cut":false,"hidden":false,"merged":[]}
["Leitung - maximal zuwendungsfähig TV-L E 13"]
[2020,87100]
[2021,{"$f":"ROUND(B2*1.02,-2)","v":88800},"Kalkulation mit 2%-Steigerung, gerundet auf volle Hundert €"]
[2022,{"$f":"ROUND(B3*1.02,-2)","v":90600},"Kalkulation mit 2%-Steigerung, gerundet auf volle Hundert €"]
[2023,92400,"Kalkulation mit 2%-Steigerung, gerundet auf volle Hundert €"]
[2024,94200,"Kalkulation mit 2%-Steigerung, gerundet auf volle Hundert €"]
[2025,96100,"Kalkulation mit 2%-Steigerung, gerundet auf volle Hundert €"]
[]
[]
["Beratung - maximal zuwendungsfähig TV-L E 11"]
[2020,80000]
[2021,{"$f":"ROUND(B11*1.02,-2)","v":81600},"Kalkulation mit 2%-Steigerung, gerundet auf volle Hundert €"]
[2022,83200,"Kalkulation mit 2%-Steigerung, gerundet auf volle Hundert €"]
[2023,84900,"Kalkulation mit 2%-Steigerung, gerundet auf volle Hundert €"]
[2024,86600,"Kalkulation mit 2%-Steigerung, gerundet auf volle Hundert €"]
[2025,88300,"Kalkulation mit 2%-Steigerung, gerundet auf volle Hundert €"]
[]
[]
["Assistenz - maximal zuwendungsfähig TV-L E 8"]
[2020,55000]
[2021,{"$f":"ROUND(B20*1.02,-2)","v":56100},"Kalkulation mit 2%-Steigerung, gerundet auf volle Hundert €"]
[2022,57200,"Kalkulation mit 2%-Steigerung, gerundet auf volle Hundert €"]
[2023,58300,"Kalkulation mit 2%-Steigerung, gerundet auf volle Hundert €"]
[2024,59500,"Kalkulation mit 2%-Steigerung, gerundet auf volle Hundert €"]
[2025,60700,"Kalkulation mit 2%-Steigerung, gerundet auf volle Hundert €"]